[Event "*** Titled Tuesday Blitz"]
[Site "Chess.com"]
[Date "2020.05.26"]
[Round "4"]
[White "Carnivoras"]
[Black "A-Adly"]
[Result "0-1"]
[WhiteElo "2613"]
[BlackElo "2826"]
[TimeControl "180+1"]
[EndTime "10:38:34 PDT"]
[Termination "A-Adly won by resignation"]

1. d4 {[%clk 0:03:00.9]} 1... Nf6 {[%clk 0:02:57]} 2. Nf3 {[%clk 0:03:00.9]}
2... e6 {[%clk 0:02:56.8]} 3. Bg5 {[%clk 0:03:00.5]} 3... d5 {[%clk 0:02:50]} 4.
Nbd2 {[%clk 0:03:00]} 4... Be7 {[%clk 0:02:48.7]} 5. e3 {[%clk 0:03:00.1]} 5...
b6 {[%clk 0:02:48]} 6. Bd3 {[%clk 0:03:00.3]} 6... Bb7 {[%clk 0:02:48.5]} 7. O-O
{[%clk 0:03:00.8]} 7... Nbd7 {[%clk 0:02:48.9]} 8. c4 {[%clk 0:03:00.4]} 8... h6
{[%clk 0:02:46.6]} 9. Bh4 {[%clk 0:02:58.3]} 9... O-O {[%clk 0:02:45.7]} 10. Rc1
{[%clk 0:02:57.9]} 10... c5 {[%clk 0:02:44.9]} 11. cxd5 {[%clk 0:02:49.9]} 11...
Nxd5 {[%clk 0:02:42.7]} 12. Bxe7 {[%clk 0:02:47.9]} 12... Qxe7 {[%clk
0:02:43.6]} 13. Bb1 {[%clk 0:02:12.9]} 13... Rac8 {[%clk 0:02:34.8]} 14. e4
{[%clk 0:01:58.5]} 14... Nf4 {[%clk 0:02:32.5]} 15. g3 {[%clk 0:01:53.9]} 15...
Nh3+ {[%clk 0:02:23.9]} 16. Kg2 {[%clk 0:01:52.4]} 16... Ng5 {[%clk 0:02:24.4]}
17. Re1 {[%clk 0:01:33.7]} 17... Rfd8 {[%clk 0:02:10.2]} 18. Qe2 {[%clk
0:00:46.7]} 18... Nf6 {[%clk 0:01:49.2]} 19. Nxg5 {[%clk 0:00:33.1]} 19... hxg5
{[%clk 0:01:50.1]} 20. d5 {[%clk 0:00:13.3]} 20... exd5 {[%clk 0:01:32.9]} 21.
e5 {[%clk 0:00:13.6]} 21... Nd7 {[%clk 0:01:08.8]} 22. Qh5 {[%clk 0:00:11.3]}
22... Nf8 {[%clk 0:01:07]} 23. Nf3 {[%clk 0:00:09]} 23... d4 {[%clk 0:01:06.2]}
24. Be4 {[%clk 0:00:08.7]} 24... Bxe4 {[%clk 0:00:55.7]} 25. Rxe4 {[%clk
0:00:09.6]} 25... Ne6 {[%clk 0:00:52.1]} 26. h4 {[%clk 0:00:09.4]} 26... g6
{[%clk 0:00:49.3]} 27. Qg4 {[%clk 0:00:09.5]} 27... d3 {[%clk 0:00:33.3]} 28.
hxg5 {[%clk 0:00:08.5]} 28... Kg7 {[%clk 0:00:27.5]} 29. Rd1 {[%clk 0:00:06.8]}
29... b5 {[%clk 0:00:26.9]} 30. Re3 {[%clk 0:00:06.3]} 30... c4 {[%clk
0:00:26.8]} 31. Qh4 {[%clk 0:00:04.1]} 31... Rh8 {[%clk 0:00:25.4]} 32. Qg4
{[%clk 0:00:04.5]} 32... Qb7 {[%clk 0:00:24]} 33. Kg1 {[%clk 0:00:03]} 33... Rh5
{[%clk 0:00:21.6]} 34. Re4 {[%clk 0:00:01.9]} 34... Rch8 {[%clk 0:00:20.4]} 35.
Kf1 {[%clk 0:00:01.6]} 35... Rh1+ {[%clk 0:00:19.8]} 36. Kg2 {[%clk 0:00:02.5]}
0-1

[Event "*** Titled Tuesday Blitz"]
[Site "Chess.com"]
[Date "2020.05.26"]
[Round "4"]
[White "Mostii"]
[Black "WinstonSilvakov"]
[Result "1-0"]
[WhiteElo "2367"]
[BlackElo "2103"]
[TimeControl "180+1"]
[EndTime "10:38:35 PDT"]
[Termination "Mostii won on time"]

1. d4 {[%clk 0:03:00.9]} 1... Nf6 {[%clk 0:03:00.9]} 2. Nf3 {[%clk 0:03:00.6]}
2... c5 {[%clk 0:02:59.6]} 3. g3 {[%clk 0:03:01.5]} 3... cxd4 {[%clk 0:03:00.5]}
4. Bg2 {[%clk 0:03:01.2]} 4... Nc6 {[%clk 0:03:01.4]} 5. Nxd4 {[%clk 0:03:00.7]}
5... g6 {[%clk 0:03:00.7]} 6. b3 {[%clk 0:02:59.9]} 6... Bg7 {[%clk 0:02:59.7]}
7. Bb2 {[%clk 0:03:00]} 7... O-O {[%clk 0:02:55.1]} 8. O-O {[%clk 0:02:59.8]}
8... a6 {[%clk 0:02:54.4]} 9. Nd2 {[%clk 0:02:59.4]} 9... Qc7 {[%clk 0:02:48.3]}
10. c4 {[%clk 0:02:58.2]} 10... e5 {[%clk 0:02:44.8]} 11. Nxc6 {[%clk
0:02:56.1]} 11... dxc6 {[%clk 0:02:35.8]} 12. Qc2 {[%clk 0:02:27.4]} 12... Re8
{[%clk 0:02:12.7]} 13. c5 {[%clk 0:02:26.4]} 13... Nd7 {[%clk 0:01:46.5]} 14.
Ne4 {[%clk 0:02:11.3]} 14... Bf8 {[%clk 0:01:40.4]} 15. Rfd1 {[%clk 0:02:07.5]}
15... Re6 {[%clk 0:01:27]} 16. b4 {[%clk 0:00:55.8]} 16... h6 {[%clk 0:01:17.2]}
17. Rd2 {[%clk 0:00:51.6]} 17... f5 {[%clk 0:01:15.7]} 18. Qc4 {[%clk
0:00:51.4]} 18... Kf7 {[%clk 0:00:29.5]} 19. Nd6+ {[%clk 0:00:50.1]} 19... Bxd6
{[%clk 0:00:25.2]} 20. Rxd6 {[%clk 0:00:49]} 20... Nf8 {[%clk 0:00:24.6]} 21.
Bxe5 {[%clk 0:00:47]} 21... Qe7 {[%clk 0:00:25.1]} 22. Rad1 {[%clk 0:00:44.2]}
22... Kg8 {[%clk 0:00:21.1]} 23. f4 {[%clk 0:00:23.9]} 23... Kh7 {[%clk
0:00:15.2]} 24. e4 {[%clk 0:00:23.9]} 24... Rxe5 {[%clk 0:00:11.1]} 25. fxe5
{[%clk 0:00:23.8]} 25... Qxe5 {[%clk 0:00:10.2]} 26. exf5 {[%clk 0:00:24.2]}
26... Bxf5 {[%clk 0:00:06.2]} 27. Qf7+ {[%clk 0:00:24.1]} 27... Qg7 {[%clk
0:00:06.6]} 28. Qxg7+ {[%clk 0:00:20.1]} 28... Kxg7 {[%clk 0:00:06.8]} 29. h3
{[%clk 0:00:20.6]} 29... Re8 {[%clk 0:00:06.4]} 30. g4 {[%clk 0:00:20.8]} 30...
Be4 {[%clk 0:00:06.6]} 31. Re1 {[%clk 0:00:19.6]} 1-0

[Event "*** Titled Tuesday Blitz"]
[Site "Chess.com"]
[Date "2020.05.26"]
[Round "4"]
[White "Omk124"]
[Black "Jenia84"]
[Result "1-0"]
[WhiteElo "2407"]
[BlackElo "2208"]
[TimeControl "180+1"]
[EndTime "10:38:36 PDT"]
[Termination "Omk124 won by resignation"]

1. e4 {[%clk 0:03:00.9]} 1... e5 {[%clk 0:02:59.2]} 2. Nf3 {[%clk 0:03:00.7]}
2... Nc6 {[%clk 0:02:59.4]} 3. Bc4 {[%clk 0:03:01.3]} 3... Bc5 {[%clk
0:02:58.6]} 4. c3 {[%clk 0:03:01.7]} 4... Nf6 {[%clk 0:02:56.1]} 5. d3 {[%clk
0:03:02.3]} 5... d6 {[%clk 0:02:55.4]} 6. O-O {[%clk 0:03:02.4]} 6... h6 {[%clk
0:02:55.2]} 7. Nbd2 {[%clk 0:03:00.9]} 7... O-O {[%clk 0:02:55]} 8. Re1 {[%clk
0:03:01.3]} 8... Be6 {[%clk 0:02:53.7]} 9. Bb3 {[%clk 0:02:59]} 9... a5 {[%clk
0:02:52.3]} 10. Nf1 {[%clk 0:02:58.3]} 10... b5 {[%clk 0:02:50.2]} 11. a4 {[%clk
0:02:55.1]} 11... bxa4 {[%clk 0:02:48.3]} 12. Bxa4 {[%clk 0:02:53.7]} 12... Ne7
{[%clk 0:02:47.8]} 13. Bc2 {[%clk 0:02:53.1]} 13... Ng6 {[%clk 0:02:47]} 14. Ng3
{[%clk 0:02:53]} 14... c6 {[%clk 0:02:30.8]} 15. d4 {[%clk 0:02:52.9]} 15...
exd4 {[%clk 0:02:29.1]} 16. cxd4 {[%clk 0:02:53.8]} 16... Bb4 {[%clk 0:02:29]}
17. Bd2 {[%clk 0:02:53.6]} 17... Rb8 {[%clk 0:02:27.6]} 18. Bc3 {[%clk
0:02:40.9]} 18... Re8 {[%clk 0:02:07.9]} 19. Qd2 {[%clk 0:02:35.5]} 19... Bg4
{[%clk 0:02:00.1]} 20. Bd1 {[%clk 0:01:43]} 20... c5 {[%clk 0:01:27.3]} 21. h3
{[%clk 0:01:30.1]} 21... Bxf3 {[%clk 0:01:21.3]} 22. Bxf3 {[%clk 0:01:31]} 22...
cxd4 {[%clk 0:01:21.6]} 23. Qxd4 {[%clk 0:01:30.3]} 23... Ne5 {[%clk 0:01:16.2]}
24. Be2 {[%clk 0:01:30]} 24... Qb6 {[%clk 0:01:12.4]} 25. Qd2 {[%clk 0:01:03.2]}
25... Ned7 {[%clk 0:00:56.9]} 26. Bc4 {[%clk 0:01:00.9]} 26... Nc5 {[%clk
0:00:49.2]} 27. Bd5 {[%clk 0:00:51]} 27... Bxc3 {[%clk 0:00:37.8]} 28. bxc3
{[%clk 0:00:48.1]} 28... Nxd5 {[%clk 0:00:37.5]} 29. Qxd5 {[%clk 0:00:45.1]}
29... Re5 {[%clk 0:00:30.1]} 30. Qa2 {[%clk 0:00:43.8]} 30... Rbe8 {[%clk
0:00:19.3]} 31. Qxa5 {[%clk 0:00:40.5]} 31... Qxa5 {[%clk 0:00:17.6]} 32. Rxa5
{[%clk 0:00:41.4]} 32... f5 {[%clk 0:00:16.6]} 33. f4 {[%clk 0:00:38.1]} 33...
R5e6 {[%clk 0:00:15.6]} 34. Nxf5 {[%clk 0:00:37]} 34... Nxe4 {[%clk 0:00:15.7]}
35. Nd4 {[%clk 0:00:36.7]} 35... R6e7 {[%clk 0:00:14.4]} 36. c4 {[%clk
0:00:31.8]} 36... Nc5 {[%clk 0:00:13.5]} 37. Rxe7 {[%clk 0:00:30.6]} 37... Rxe7
{[%clk 0:00:13.8]} 38. Nf5 {[%clk 0:00:31]} 38... Re1+ {[%clk 0:00:13.2]} 39.
Kh2 {[%clk 0:00:31.6]} 39... Re4 {[%clk 0:00:13.7]} 40. Nxd6 {[%clk 0:00:31.4]}
40... Rxf4 {[%clk 0:00:12.8]} 41. Rxc5 {[%clk 0:00:31.5]} 1-0

[Event "*** Titled Tuesday Blitz"]
[Site "Chess.com"]
[Date "2020.05.26"]
[Round "4"]
[White "JuliaEfremova"]
[Black "Vitor-Moraes"]
[Result "1-0"]
[WhiteElo "2218"]
[BlackElo "1984"]
[TimeControl "180+1"]
[EndTime "10:38:36 PDT"]
[Termination "JuliaEfremova won on time"]

1. d4 {[%clk 0:03:00.9]} 1... Nf6 {[%clk 0:02:59.4]} 2. Bf4 {[%clk 0:03:00.4]}
2... e6 {[%clk 0:02:59.7]} 3. Nf3 {[%clk 0:02:58.5]} 3... d5 {[%clk 0:03:00.1]}
4. e3 {[%clk 0:02:57.1]} 4... Bd6 {[%clk 0:03:00.5]} 5. Bg3 {[%clk 0:02:54.2]}
5... O-O {[%clk 0:02:50.5]} 6. Bd3 {[%clk 0:02:52.5]} 6... b6 {[%clk 0:02:48.3]}
7. Nbd2 {[%clk 0:02:51.9]} 7... c5 {[%clk 0:02:45.2]} 8. c3 {[%clk 0:02:51.3]}
8... Ba6 {[%clk 0:02:40.2]} 9. Bxa6 {[%clk 0:02:43.5]} 9... Nxa6 {[%clk
0:02:41.1]} 10. Bxd6 {[%clk 0:02:42.8]} 10... Qxd6 {[%clk 0:02:40.3]} 11. Ne5
{[%clk 0:02:43.7]} 11... Nd7 {[%clk 0:02:38.1]} 12. Ndf3 {[%clk 0:02:33]} 12...
Nxe5 {[%clk 0:02:34.7]} 13. Nxe5 {[%clk 0:02:30.7]} 13... f6 {[%clk 0:02:35.1]}
14. Nd3 {[%clk 0:02:29]} 14... e5 {[%clk 0:02:32.5]} 15. dxe5 {[%clk 0:02:11.9]}
15... fxe5 {[%clk 0:02:28.2]} 16. Qh5 {[%clk 0:02:09.7]} 16... Rae8 {[%clk
0:02:19.3]} 17. O-O-O {[%clk 0:01:58.7]} 17... d4 {[%clk 0:02:16.9]} 18. exd4
{[%clk 0:01:52.2]} 18... cxd4 {[%clk 0:01:50.4]} 19. cxd4 {[%clk 0:01:48.3]}
19... e4 {[%clk 0:01:44.6]} 20. Ne5 {[%clk 0:01:44.6]} 20... Rc8+ {[%clk
0:01:26.7]} 21. Kb1 {[%clk 0:01:43.6]} 21... Rxf2 {[%clk 0:01:22.7]} 22. Rc1
{[%clk 0:01:35.3]} 22... Rcf8 {[%clk 0:00:56.1]} 23. Nc4 {[%clk 0:00:56.5]}
23... Qxd4 {[%clk 0:00:49]} 24. Rhd1 {[%clk 0:00:51.8]} 24... Qf6 {[%clk
0:00:34.5]} 25. Qd5+ {[%clk 0:00:50.2]} 25... Kh8 {[%clk 0:00:34.6]} 26. Rd2
{[%clk 0:00:40.8]} 26... e3 {[%clk 0:00:30.4]} 27. Nxe3 {[%clk 0:00:38.8]} 27...
Rxd2 {[%clk 0:00:18.3]} 28. Qxd2 {[%clk 0:00:38.5]} 28... Rd8 {[%clk 0:00:18.1]}
29. Qc3 {[%clk 0:00:34]} 29... Qg6+ {[%clk 0:00:16.6]} 30. Ka1 {[%clk
0:00:33.4]} 30... Nc5 {[%clk 0:00:16.7]} 31. g3 {[%clk 0:00:29.5]} 31... h6
{[%clk 0:00:16.8]} 32. Nc4 {[%clk 0:00:28.9]} 32... Rd3 {[%clk 0:00:13.9]} 33.
Qe5 {[%clk 0:00:25.7]} 33... Rd8 {[%clk 0:00:07.4]} 34. Qe7 {[%clk 0:00:24.6]}
34... Rd4 {[%clk 0:00:03.7]} 35. Ne5 {[%clk 0:00:23.5]} 1-0

[Event "*** Titled Tuesday Blitz"]
[Site "Chess.com"]
[Date "2020.05.26"]
[Round "4"]
[White "pedro_nascimento85"]
[Black "politeplayer"]
[Result "1-0"]
[WhiteElo "1873"]
[BlackElo "2166"]
[TimeControl "180+1"]
[EndTime "10:38:36 PDT"]
[Termination "pedro_nascimento85 won by checkmate"]

1. d4 {[%clk 0:03:00.9]} 1... Nf6 {[%clk 0:02:58.4]} 2. c4 {[%clk 0:03:00.5]}
2... g6 {[%clk 0:02:57.5]} 3. Nc3 {[%clk 0:02:59.2]} 3... Bg7 {[%clk 0:02:57.8]}
4. e4 {[%clk 0:02:58.7]} 4... d6 {[%clk 0:02:58.1]} 5. Be2 {[%clk 0:02:58.3]}
5... O-O {[%clk 0:02:57.9]} 6. Nf3 {[%clk 0:02:58.2]} 6... e5 {[%clk 0:02:56.8]}
7. d5 {[%clk 0:02:58]} 7... a5 {[%clk 0:02:55.4]} 8. Bg5 {[%clk 0:02:56.2]} 8...
h6 {[%clk 0:02:54.4]} 9. Bh4 {[%clk 0:02:55.8]} 9... Qe8 {[%clk 0:02:52.9]} 10.
Nd2 {[%clk 0:02:53.6]} 10... Nh7 {[%clk 0:02:50.3]} 11. O-O {[%clk 0:02:52.4]}
11... Na6 {[%clk 0:02:49.3]} 12. f3 {[%clk 0:02:51.7]} 12... h5 {[%clk
0:02:46.2]} 13. Kh1 {[%clk 0:02:47.1]} 13... Bh6 {[%clk 0:02:44.9]} 14. b3
{[%clk 0:02:43.4]} 14... Bd7 {[%clk 0:02:41.1]} 15. a3 {[%clk 0:02:42.9]} 15...
Be3 {[%clk 0:02:38.4]} 16. Rb1 {[%clk 0:02:38.4]} 16... Qb8 {[%clk 0:02:31.7]}
17. Bf2 {[%clk 0:02:32.7]} 17... Bxf2 {[%clk 0:02:23.9]} 18. Rxf2 {[%clk
0:02:31.4]} 18... Qa7 {[%clk 0:02:24.5]} 19. Rf1 {[%clk 0:02:29.4]} 19... Qe3
{[%clk 0:02:21.5]} 20. Qc2 {[%clk 0:02:23.4]} 20... f5 {[%clk 0:02:13.4]} 21.
Qd3 {[%clk 0:02:21.5]} 21... Qc5 {[%clk 0:02:04.4]} 22. Na2 {[%clk 0:02:04.8]}
22... Qxa3 {[%clk 0:01:53.5]} 23. Nc3 {[%clk 0:02:00.9]} 23... Nb4 {[%clk
0:01:32.5]} 24. Qe3 {[%clk 0:01:55.7]} 24... f4 {[%clk 0:01:21]} 25. Qg1 {[%clk
0:01:52.9]} 25... Nc2 {[%clk 0:01:19.1]} 26. Rfc1 {[%clk 0:01:45.1]} 26... Nd4
{[%clk 0:01:13.6]} 27. Bd3 {[%clk 0:01:39.6]} 27... Qc5 {[%clk 0:01:09.2]} 28.
Na4 {[%clk 0:01:34.4]} 28... Qa7 {[%clk 0:01:01.1]} 29. c5 {[%clk 0:01:29.5]}
29... Bxa4 {[%clk 0:00:42.9]} 30. bxa4 {[%clk 0:01:28.9]} 30... dxc5 {[%clk
0:00:42.6]} 31. Nc4 {[%clk 0:01:28.6]} 31... Rfe8 {[%clk 0:00:31.5]} 32. Qf2
{[%clk 0:01:25.4]} 32... g5 {[%clk 0:00:28.9]} 33. g3 {[%clk 0:01:23.1]} 33...
Re7 {[%clk 0:00:26.9]} 34. gxf4 {[%clk 0:01:21.8]} 34... gxf4 {[%clk 0:00:26.1]}
35. Rg1+ {[%clk 0:01:20]} 35... Kh8 {[%clk 0:00:20.1]} 36. Qh4 {[%clk
0:01:15.6]} 36... Rae8 {[%clk 0:00:14.7]} 37. Rbf1 {[%clk 0:01:11.8]} 37... Qb8
{[%clk 0:00:12.6]} 38. Rg6 {[%clk 0:01:08.1]} 38... b5 {[%clk 0:00:10.7]} 39.
axb5 {[%clk 0:01:06.7]} 39... Qxb5 {[%clk 0:00:10.7]} 40. Nxe5 {[%clk
0:01:03.3]} 40... Rxe5 {[%clk 0:00:09.6]} 41. Bxb5 {[%clk 0:01:02.8]} 41... Nxb5
{[%clk 0:00:09.8]} 42. Rh6 {[%clk 0:00:58.1]} 42... Nd4 {[%clk 0:00:08.3]} 43.
Qf6+ {[%clk 0:00:54.1]} 43... Kg8 {[%clk 0:00:07.5]} 44. Rg1+ {[%clk 0:00:54.5]}
44... Ng5 {[%clk 0:00:07.2]} 45. Rxg5+ {[%clk 0:00:53.6]} 45... Rxg5 {[%clk
0:00:07.1]} 46. Qxg5+ {[%clk 0:00:53.3]} 46... Kf7 {[%clk 0:00:07.6]} 47. Rh7+
{[%clk 0:00:52.1]} 47... Kf8 {[%clk 0:00:06.5]} 48. Qg7# {[%clk 0:00:51]} 1-0

[Event "*** Titled Tuesday Blitz"]
[Site "Chess.com"]
[Date "2020.05.26"]
[Round "4"]
[White "Agnes66678"]
[Black "moro182"]
[Result "1/2-1/2"]
[WhiteElo "2476"]
[BlackElo "2633"]
[TimeControl "180+1"]
[EndTime "10:38:39 PDT"]
[Termination "Game drawn by repetition"]

1. d4 {[%clk 0:02:55.1]} 1... Nf6 {[%clk 0:02:57.5]} 2. c4 {[%clk 0:02:55.1]}
2... e6 {[%clk 0:02:57.3]} 3. g3 {[%clk 0:02:54.6]} 3... d5 {[%clk 0:02:55]} 4.
Nf3 {[%clk 0:02:53.8]} 4... b6 {[%clk 0:02:50.3]} 5. Bg2 {[%clk 0:02:53.2]} 5...
Bb7 {[%clk 0:02:51]} 6. Ne5 {[%clk 0:02:53.6]} 6... Nbd7 {[%clk 0:02:50.7]} 7.
O-O {[%clk 0:02:51.2]} 7... Bd6 {[%clk 0:02:49.5]} 8. Bf4 {[%clk 0:02:50.4]}
8... O-O {[%clk 0:02:49.1]} 9. Nc3 {[%clk 0:02:50.4]} 9... Ne4 {[%clk
0:02:36.2]} 10. Nxe4 {[%clk 0:02:50]} 10... dxe4 {[%clk 0:02:37.1]} 11. Qa4
{[%clk 0:02:49.9]} 11... Nxe5 {[%clk 0:02:32.9]} 12. dxe5 {[%clk 0:02:47.8]}
12... Bc5 {[%clk 0:02:32.8]} 13. Qc2 {[%clk 0:02:41.9]} 13... a5 {[%clk
0:01:43.6]} 14. Rad1 {[%clk 0:02:36.7]} 14... Qe7 {[%clk 0:01:43.7]} 15. Bxe4
{[%clk 0:02:36.3]} 15... Bxe4 {[%clk 0:01:43.4]} 16. Qxe4 {[%clk 0:02:35.8]}
16... Rad8 {[%clk 0:01:43.6]} 17. h4 {[%clk 0:02:30.7]} 17... h6 {[%clk
0:01:43.5]} 18. Qc6 {[%clk 0:02:28.5]} 18... Rxd1 {[%clk 0:01:41.5]} 19. Rxd1
{[%clk 0:02:27.9]} 19... Rd8 {[%clk 0:01:42.4]} 20. Rd3 {[%clk 0:02:20.3]} 20...
Kh7 {[%clk 0:01:22.4]} 21. Qe4+ {[%clk 0:02:17.8]} 21... Kg8 {[%clk 0:01:22]}
22. Kg2 {[%clk 0:02:17.3]} 22... Rd7 {[%clk 0:01:12.7]} 23. Qc6 {[%clk
0:02:03.6]} 23... Rd8 {[%clk 0:01:12.2]} 24. b3 {[%clk 0:01:56.6]} 24... Kh7
{[%clk 0:01:11.9]} 25. h5 {[%clk 0:01:55.3]} 25... Kg8 {[%clk 0:01:03.9]} 26.
Qb7 {[%clk 0:01:46.8]} 26... Kh7 {[%clk 0:00:59.9]} 27. Kf3 {[%clk 0:01:46]}
27... Rd7 {[%clk 0:00:56.7]} 28. Qe4+ {[%clk 0:01:43.3]} 28... Kg8 {[%clk
0:00:56.2]} 29. Kg2 {[%clk 0:01:38]} 29... Qd8 {[%clk 0:00:55.3]} 30. Rxd7
{[%clk 0:01:37.4]} 30... Qxd7 {[%clk 0:00:56.2]} 31. Qd3 {[%clk 0:01:33.6]}
31... Qc6+ {[%clk 0:00:56.5]} 32. f3 {[%clk 0:01:33.4]} 32... Qe8 {[%clk
0:00:56.7]} 33. g4 {[%clk 0:01:32.7]} 33... Qe7 {[%clk 0:00:46.1]} 34. a4 {[%clk
0:01:29]} 34... Qh4 {[%clk 0:00:42.5]} 35. Bg3 {[%clk 0:01:28.5]} 35... Qe7
{[%clk 0:00:32.7]} 36. Bf4 {[%clk 0:01:26.1]} 36... Qh4 {[%clk 0:00:32.4]} 37.
e3 {[%clk 0:01:26.1]} 37... Qe1 {[%clk 0:00:30.4]} 38. g5 {[%clk 0:01:17.9]}
38... hxg5 {[%clk 0:00:28.2]} 39. Bxg5 {[%clk 0:01:17.8]} 39... Qa1 {[%clk
0:00:18.9]} 40. Bf4 {[%clk 0:01:15.2]} 40... Qb2+ {[%clk 0:00:18.2]} 41. Kh3
{[%clk 0:01:12]} 41... Qc1 {[%clk 0:00:17.7]} 42. Qd8+ {[%clk 0:01:07.8]} 42...
Kh7 {[%clk 0:00:18]} 43. Qd3+ {[%clk 0:01:08.1]} 43... Kg8 {[%clk 0:00:17.8]}
44. Kg2 {[%clk 0:01:06.7]} 44... Qb2+ {[%clk 0:00:16.8]} 45. Kh3 {[%clk
0:01:03.8]} 45... Qa1 {[%clk 0:00:17]} 46. Kg4 {[%clk 0:01:02.1]} 46... Qg1+
{[%clk 0:00:16.8]} 47. Kh3 {[%clk 0:00:58.9]} 47... Qh1+ {[%clk 0:00:17]} 48.
Kg4 {[%clk 0:00:58.6]} 48... Qg2+ {[%clk 0:00:17.4]} 49. Bg3 {[%clk 0:00:58.5]}
49... Bb4 {[%clk 0:00:14.6]} 50. h6 {[%clk 0:00:56.4]} 50... Be1 {[%clk
0:00:08.7]} 51. h7+ {[%clk 0:00:56.5]} 51... Kh8 {[%clk 0:00:09]} 52. Qd8+
{[%clk 0:00:56.4]} 52... Kxh7 {[%clk 0:00:09.4]} 53. Qh4+ {[%clk 0:00:56.3]}
53... Kg8 {[%clk 0:00:09.9]} 54. Qd8+ {[%clk 0:00:56.3]} 54... Kh7 {[%clk
0:00:10.5]} 55. Qh4+ {[%clk 0:00:56.2]} 55... Kg8 {[%clk 0:00:11.2]} 56. Qd8+
{[%clk 0:00:55.9]} 56... Kh7 {[%clk 0:00:11.7]} 1/2-1/2

[Event "*** Titled Tuesday Blitz"]
[Site "Chess.com"]
[Date "2020.05.26"]
[Round "4"]
[White "SHIVACalypso"]
[Black "ShahMatKanal"]
[Result "0-1"]
[WhiteElo "2284"]
[BlackElo "2460"]
[TimeControl "180+1"]
[EndTime "10:38:39 PDT"]
[Termination "ShahMatKanal won by resignation"]

1. Nf3 {[%clk 0:03:00.9]} 1... d5 {[%clk 0:02:59.4]} 2. c4 {[%clk 0:03:01.1]}
2... e6 {[%clk 0:02:59.3]} 3. g3 {[%clk 0:03:00.6]} 3... Nf6 {[%clk 0:02:58.9]}
4. Bg2 {[%clk 0:03:01.1]} 4... Be7 {[%clk 0:02:58.8]} 5. O-O {[%clk 0:03:01.6]}
5... O-O {[%clk 0:02:59.1]} 6. d4 {[%clk 0:03:02.1]} 6... c6 {[%clk 0:02:59]} 7.
Nc3 {[%clk 0:03:02.2]} 7... Nbd7 {[%clk 0:02:58.8]} 8. Nd2 {[%clk 0:03:01.5]}
8... b6 {[%clk 0:02:34.2]} 9. e4 {[%clk 0:03:00.4]} 9... Bb7 {[%clk 0:02:34.5]}
10. e5 {[%clk 0:02:58.6]} 10... Ne8 {[%clk 0:02:34.3]} 11. f4 {[%clk 0:02:59]}
11... g6 {[%clk 0:02:30.7]} 12. cxd5 {[%clk 0:02:57.7]} 12... cxd5 {[%clk
0:02:30.1]} 13. g4 {[%clk 0:02:54.6]} 13... f6 {[%clk 0:02:21.4]} 14. Qe2 {[%clk
0:02:47.8]} 14... f5 {[%clk 0:02:11.3]} 15. gxf5 {[%clk 0:02:34.2]} 15... gxf5
{[%clk 0:02:11.2]} 16. Kh1 {[%clk 0:02:31.3]} 16... Kh8 {[%clk 0:02:11.4]} 17.
Rg1 {[%clk 0:02:31.1]} 17... Rg8 {[%clk 0:02:07.2]} 18. Nf3 {[%clk 0:02:24.7]}
18... Nf8 {[%clk 0:02:04.2]} 19. Be3 {[%clk 0:02:22]} 19... Ng6 {[%clk
0:02:02.1]} 20. Bh3 {[%clk 0:02:05.5]} 20... h6 {[%clk 0:01:44.2]} 21. Rg2
{[%clk 0:02:03.2]} 21... Kh7 {[%clk 0:01:24.2]} 22. Rag1 {[%clk 0:02:01.5]}
22... Nc7 {[%clk 0:01:15.5]} 23. Ng5+ {[%clk 0:01:03.8]} 23... hxg5 {[%clk
0:01:08.6]} 24. Rxg5 {[%clk 0:01:02]} 24... Bxg5 {[%clk 0:01:02.7]} 25. Rxg5
{[%clk 0:01:01.6]} 25... Qf8 {[%clk 0:00:35]} 26. Bf2 {[%clk 0:00:25.1]} 26...
Ba6 {[%clk 0:00:18.5]} 27. Qf3 {[%clk 0:00:20.6]} 27... Nb5 {[%clk 0:00:14.9]}
28. Ne2 {[%clk 0:00:19.3]} 28... Rc8 {[%clk 0:00:13.9]} 29. Ng3 {[%clk
0:00:17.8]} 29... Rc1+ {[%clk 0:00:13.2]} 30. Kg2 {[%clk 0:00:17.3]} 30... Nxd4
{[%clk 0:00:13.3]} 31. Bxd4 {[%clk 0:00:16.1]} 31... Bf1+ {[%clk 0:00:13.2]} 32.
Kf2 {[%clk 0:00:15.2]} 32... Bxh3 {[%clk 0:00:12.1]} 33. Nh5 {[%clk 0:00:15.7]}
33... Rf1+ {[%clk 0:00:10.4]} 34. Ke2 {[%clk 0:00:14.3]} 34... Rxf3 {[%clk
0:00:10.3]} 35. Nf6+ {[%clk 0:00:14]} 35... Kg7 {[%clk 0:00:08.3]} 0-1

[Event "*** Titled Tuesday Blitz"]
[Site "Chess.com"]
[Date "2020.05.26"]
[Round "4"]
[White "volcanoexplorer"]
[Black "Alexander_Moskalenko"]
[Result "0-1"]
[WhiteElo "2527"]
[BlackElo "2795"]
[TimeControl "180+1"]
[EndTime "10:38:40 PDT"]
[Termination "Alexander_Moskalenko won by checkmate"]

1. e4 {[%clk 0:03:00.9]} 1... e6 {[%clk 0:02:54.5]} 2. d4 {[%clk 0:03:01]} 2...
d5 {[%clk 0:02:53.4]} 3. Nc3 {[%clk 0:03:01.5]} 3... Nf6 {[%clk 0:02:52.6]} 4.
Bg5 {[%clk 0:03:01]} 4... dxe4 {[%clk 0:02:52.8]} 5. Nxe4 {[%clk 0:03:01.1]}
5... Be7 {[%clk 0:02:53.5]} 6. Bxf6 {[%clk 0:03:01.6]} 6... gxf6 {[%clk
0:02:54.4]} 7. g3 {[%clk 0:03:00.7]} 7... f5 {[%clk 0:02:53.6]} 8. Nc3 {[%clk
0:02:57.9]} 8... c5 {[%clk 0:02:54.1]} 9. Nge2 {[%clk 0:02:44.9]} 9... cxd4
{[%clk 0:02:52.4]} 10. Qxd4 {[%clk 0:02:45.4]} 10... Nc6 {[%clk 0:02:51.2]} 11.
Qxd8+ {[%clk 0:02:11.5]} 11... Bxd8 {[%clk 0:02:52.1]} 12. Bg2 {[%clk
0:02:06.1]} 12... Bd7 {[%clk 0:02:38.6]} 13. O-O-O {[%clk 0:02:02.9]} 13... Bb6
{[%clk 0:02:33.7]} 14. f4 {[%clk 0:01:56.2]} 14... Ke7 {[%clk 0:02:28.4]} 15.
Nb5 {[%clk 0:01:37.8]} 15... Bc5 {[%clk 0:02:11.7]} 16. Nbd4 {[%clk 0:01:27.5]}
16... Rac8 {[%clk 0:02:08.9]} 17. c3 {[%clk 0:01:25.7]} 17... h5 {[%clk
0:02:03.2]} 18. Nf3 {[%clk 0:00:55.2]} 18... b5 {[%clk 0:01:59.2]} 19. Kb1
{[%clk 0:00:51.1]} 19... a5 {[%clk 0:01:58.2]} 20. Ned4 {[%clk 0:00:47.7]} 20...
b4 {[%clk 0:01:54.6]} 21. Ne5 {[%clk 0:00:28.1]} 21... Nxe5 {[%clk 0:01:49.9]}
22. fxe5 {[%clk 0:00:28.3]} 22... bxc3 {[%clk 0:01:49.4]} 23. bxc3 {[%clk
0:00:28.2]} 23... a4 {[%clk 0:01:37.9]} 24. Rd2 {[%clk 0:00:17.8]} 24... Rb8+
{[%clk 0:01:30.9]} 25. Kc2 {[%clk 0:00:17.6]} 25... Rhc8 {[%clk 0:01:16.6]} 26.
Rhd1 {[%clk 0:00:15.3]} 26... Be8 {[%clk 0:01:16.6]} 27. Bf3 {[%clk 0:00:10.2]}
27... Bb4 {[%clk 0:00:35.9]} 28. Rd3 {[%clk 0:00:10.3]} 28... Ba3 {[%clk
0:00:36.5]} 29. Rb1 {[%clk 0:00:05.6]} 29... Rxb1 {[%clk 0:00:36.5]} 30. Kxb1
{[%clk 0:00:06.5]} 30... f6 {[%clk 0:00:37.1]} 31. exf6+ {[%clk 0:00:03.2]}
31... Kxf6 {[%clk 0:00:38]} 32. Kc2 {[%clk 0:00:03.9]} 32... e5 {[%clk
0:00:36.3]} 33. Nxf5 {[%clk 0:00:01.9]} 33... Kxf5 {[%clk 0:00:33.7]} 34. Re3
{[%clk 0:00:01.4]} 34... Kf6 {[%clk 0:00:31.7]} 35. Be4 {[%clk 0:00:01.7]} 35...
Rb8 {[%clk 0:00:26.3]} 36. Rf3+ {[%clk 0:00:02.6]} 36... Ke7 {[%clk 0:00:21.9]}
37. Bd5 {[%clk 0:00:02.9]} 37... Rb2+ {[%clk 0:00:21.6]} 38. Kd3 {[%clk
0:00:03.5]} 38... Kd6 {[%clk 0:00:19.7]} 39. Bc4 {[%clk 0:00:03.5]} 39... Bg6+
{[%clk 0:00:19.6]} 40. Ke3 {[%clk 0:00:03.5]} 40... Bc5# {[%clk 0:00:20.1]} 0-1